fUSD/lending_fUSD_20260123
["ID","MTS","AMOUNT","RATE_DAILY","PERIOD"]
[403140247,1769191840412,-500.0,0.00017863,2]
[403140248,1769191840422,-25000.0,0.000179,3]
[403140249,1769191840434,-329.91342299,0.000179,2]
[403140250,1769191840445,-291.47216045,0.000179,2]
[403140251,1769191840457,-1300.0,0.000179,6]
[403140252,1769191840471,-2441.15021521,0.000179,2]
[403140253,1769191840483,-816.87543449,0.000179,2]
[403140254,1769191840494,-382.95782017,0.000179,2]
[403140255,1769191840505,-2631.7913204,0.000179,2]
[403140256,1769191840516,-195.92069658,0.000179,3]
[403140257,1769191840530,-500.0,0.00017918,2]
[403140258,1769191840542,-500.0,0.00017918,2]
[403140259,1769191840554,-500.0,0.00017918,2]
[403140260,1769191840569,-340.0,0.00017918,2]
[403140261,1769191840580,-233.97306392,0.00017918,2]
[403140262,1769191840590,-500.0,0.00017918,2]
[403140263,1769191840601,-500.0,0.00017918,2]
[403140264,1769191840612,-500.0,0.00017918,2]
[403140265,1769191840624,-500.0,0.00017918,2]
[403140266,1769191840636,-975.51509,0.0001792,2]
[403140267,1769191840648,-2000.0,0.00017923,2]
[403140268,1769191840660,-1000.0,0.0001793,2]
[403140269,1769191840672,-1000.0,0.0001793,2]
[403140270,1769191840684,-151.0,0.00017961,2]
[403140271,1769191840696,-151.0,0.00017961,2]
[403140272,1769191840709,-151.0,0.00017961,2]
[403140273,1769191840725,-151.0,0.00017961,2]
[403140274,1769191840737,-151.0,0.00017961,2]
[403140275,1769191840750,-151.0,0.00017961,2]
[403140276,1769191840778,-151.0,0.00017961,2]
[403140277,1769191840790,-151.0,0.00017961,2]
[403140278,1769191840802,-192.28780433,0.00017961,2]
[403140279,1769191840815,-166.29296141,0.00017961,2]
[403140280,1769191840829,-500.0,0.00017973,2]
[403140281,1769191840841,-500.0,0.00017973,2]
[403140282,1769191840853,-500.0,0.00017973,2]
[403140283,1769191840865,-500.0,0.00017973,2]
[403140284,1769191840880,-500.0,0.00017973,2]
[403140285,1769191840894,-508.24,0.00017973,2]
[403140286,1769191840907,-150.0,0.00017973,2]
[403140287,1769191840920,-545.63,0.0001798,2]
[403140288,1769191840932,-155.0,0.00017999,2]
[403140289,1769191840944,-300.0,0.00017999,2]
[403140290,1769191840958,-629.45617124,0.00017999,2]
[403140291,1769191840971,-500.0,0.00017999,2]
[403140292,1769191840983,-500.0,0.00017999,2]
[403140293,1769191840996,-500.0,0.00017999,2]
[403140294,1769191841007,-500.0,0.00017999,2]
[403140295,1769191841020,-1105.49036068,0.00017999,5]
[403140296,1769191841032,-300.0,0.00017999,2]
[403140297,1769191841044,-2509734.46314169,0.00018,2]
[403140298,1769191841947,-154.27021003,0.00018,2]
[403140299,1769191842169,-505.0,0.00018,2]
[403140300,1769191842182,-321.67596615,0.00018,2]
[403140301,1769191842195,-1055.38094371,0.00018,2]
[403140302,1769191842231,-826.28242731,0.00018,2]
[403140303,1769191842600,-1741.80127916,0.00018,2]
[403140304,1769191842611,-1000.0,0.00018,2]
[403140305,1769191842627,-63707.70372404,0.00018,2]
[403140306,1769191842637,-57637.50742037,0.00018,2]
[403140307,1769191842647,-50194.24412187,0.00018,2]
[403140308,1769191842656,-6880393.93610133,0.00018,2]
[403140309,1769191842681,-999.99999983,0.00018,2]
[403140316,1769191843166,-650.304964,0.00018,2]
[403140318,1769191843743,-599.7618,0.00018,2]
[403140319,1769191843754,-714.19900082,0.00018,2]
[403140320,1769191843854,-451.91847183,0.00018,2]
[403140321,1769191843868,-528.09830076,0.00018,2]
[403140322,1769191843886,-1417.67063,0.00018,2]
[403140323,1769191843902,-1573.28442931,0.00018,2]
[403140326,1769191845812,-951.66498514,0.00018,2]
[403140327,1769191845838,-1866.5616124,0.00018,2]
[403140328,1769191846157,-195.98490135,0.00018,2]
[403140329,1769191846173,-400.0,0.00018,2]
[403140332,1769191848566,-1703.94603547,0.00018,2]
[403140333,1769191848583,-4067.51944916,0.00018,2]
[403140334,1769191848595,-1231.89532479,0.00018,2]
[403140335,1769191848622,-335.95525887,0.00018,2]
[403140336,1769191848639,-316.62980946,0.00018,2]
[403140337,1769191848650,-7387.6926416,0.00018,2]
[403140338,1769191875362,1105.49036068,0.00014361,5]
[403140339,1769191896783,1200.0,0.000139,5]
[403140340,1769191979175,500.0,0.00013634,2]
[403140343,1769192330892,182.47,0.00013035,2]
[403140365,1769192804115,-179.40711758,0.00014262,2]
[403140366,1769192839727,1300.0,0.000139,5]
[403140389,1769193031885,-624.0,0.00014254,2]
[403140392,1769193031896,-150.0,0.00014254,2]
[403140395,1769193031906,-1003.75714559,0.00014255,2]
[403140398,1769193031915,-125.96288331,0.00014255,2]
[403140400,1769193031927,-877.79426228,0.00014255,2]
[403140401,1769193031936,-1003.75714559,0.00014255,2]
[403140402,1769193031945,-612.34953326,0.00014255,2]
[403140403,1769193031954,-1003.75714559,0.00014255,2]
[403140404,1769193031963,-141.96100565,0.00014255,2]
[403140405,1769193031979,-861.79613994,0.00014255,2]
[403140406,1769193031988,-1003.75714559,0.00014255,2]
[403140407,1769193031997,-1003.75714559,0.00014255,2]
[403140408,1769193032006,-1003.75714559,0.00014255,2]
[403140409,1769193032015,-1003.75714559,0.00014255,2]
[403140410,1769193032024,-1003.75714559,0.00014255,2]
[403140411,1769193032033,-1003.75714559,0.00014255,2]
[403140412,1769193032043,-1003.75714559,0.00014255,2]
[403140413,1769193032052,-1003.75714559,0.00014255,2]
[403140414,1769193032060,-1003.75714559,0.00014255,2]
[403140415,1769193032070,-1003.75714559,0.00014255,2]
[403140416,1769193032079,-1003.75714559,0.00014255,2]
[403140417,1769193032088,-1003.75714559,0.00014255,2]
[403140418,1769193032098,-1003.75714559,0.00014255,2]
[403140419,1769193032107,-1003.75714559,0.00014255,2]
[403140420,1769193032116,-846.88785606,0.00014255,2]
[403140421,1769193032135,-156.86928953,0.00014255,2]
[403140422,1769193032144,-1003.75714559,0.00014255,2]
[403140423,1769193032153,-1003.75714559,0.00014255,2]
[403140424,1769193032163,-1003.75714559,0.00014255,2]
[403140425,1769193032171,-1003.75714559,0.00014255,2]
[403140426,1769193032181,-1003.75714559,0.00014255,2]
[403140427,1769193032190,-1003.75714559,0.00014255,2]
[403140428,1769193032199,-1003.75714559,0.00014255,2]
[403140429,1769193032208,-1003.75714559,0.00014255,2]
[403140430,1769193032218,-1003.75714559,0.00014255,2]
[403140432,1769193032231,-1003.75714559,0.00014255,2]
[403140434,1769193032240,-1003.75714559,0.00014255,2]
[403140436,1769193032249,-1003.75714559,0.00014255,2]
[403140437,1769193032258,-1003.75714559,0.00014255,2]
[403140438,1769193032268,-1003.75714559,0.00014255,2]
[403140439,1769193032278,-1003.75714559,0.00014255,2]
[403140441,1769193032287,-1003.75714559,0.00014255,2]
[403140443,1769193032297,-1003.75714559,0.00014255,2]
[403140446,1769193032307,-1003.75714559,0.00014255,2]
[403140448,1769193032318,-1003.75714559,0.00014255,2]
[403140450,1769193032328,-1003.75714559,0.00014255,2]
[403140452,1769193032337,-1003.75714559,0.00014255,2]
[403140454,1769193032346,-1003.75714559,0.00014255,2]
[403140455,1769193032355,-1003.75714559,0.00014255,2]
[403140456,1769193032365,-1003.75714559,0.00014255,2]
[403140457,1769193032374,-1003.75714559,0.00014255,2]
[403140458,1769193032383,-1003.75714559,0.00014255,2]
[403140459,1769193032394,-1003.75714559,0.00014255,2]
[403140460,1769193032403,-1003.75714559,0.00014255,2]
[403140461,1769193032412,-1003.75714559,0.00014255,2]
[403140462,1769193032422,-1003.75714559,0.00014255,2]
[403140463,1769193032432,-1003.75714559,0.00014255,2]
[403140464,1769193032442,-1003.75714559,0.00014255,2]
[403140465,1769193032451,-1003.75714559,0.00014255,2]
[403140466,1769193032460,-1003.75714559,0.00014255,2]
[403140467,1769193032470,-983.09155731,0.00014255,2]
[403140468,1769193032479,-983.09155731,0.00014255,2]
[403140469,1769193032489,-983.09155731,0.00014255,2]
[403140470,1769193032499,-983.09155731,0.00014255,2]
[403140471,1769193032508,-983.09155731,0.00014255,2]
[403140472,1769193032518,-983.09155731,0.00014255,2]
[403140473,1769193032527,-983.09155731,0.00014255,2]
[403140474,1769193032537,-983.09155731,0.00014255,2]
[403140475,1769193032547,-983.09155731,0.00014255,2]
[403140476,1769193032556,-983.09155731,0.00014255,2]
[403140477,1769193032565,-983.09155731,0.00014255,2]
[403140478,1769193032575,-983.09155731,0.00014255,2]
[403140479,1769193032584,-983.09155731,0.00014255,2]
[403140480,1769193032594,-983.09155731,0.00014255,2]
[403140481,1769193032603,-983.09155731,0.00014255,2]
[403140482,1769193032613,-983.09155731,0.00014255,2]
[403140483,1769193032622,-983.09155731,0.00014255,2]
[403140484,1769193032631,-983.09155731,0.00014255,2]
[403140485,1769193032641,-983.09155731,0.00014255,2]
[403140486,1769193032651,-983.09155731,0.00014255,2]
[403140487,1769193032660,-983.09155731,0.00014255,2]
[403140488,1769193032670,-983.09155731,0.00014255,2]
[403140489,1769193032679,-983.09155731,0.00014255,2]
[403140490,1769193032689,-983.09155731,0.00014255,2]
[403140491,1769193032700,-983.09155731,0.00014255,2]
[403140492,1769193032711,-983.09155731,0.00014255,2]
[403140493,1769193032720,-983.09155731,0.00014255,2]
[403140494,1769193032730,-983.09155731,0.00014255,2]
[403140495,1769193032739,-983.09155731,0.00014255,2]
[403140496,1769193032748,-983.09155731,0.00014255,2]
[403140497,1769193032758,-983.09155731,0.00014255,2]
[403140498,1769193032767,-1046.8104545,0.00014255,2]
[403140499,1769193032776,-1046.8104545,0.00014255,2]
[403140500,1769193032786,-1046.8104545,0.00014255,2]
[403140501,1769193032796,-1046.8104545,0.00014255,2]
[403140502,1769193032805,-1000000.0,0.00014256,2]
[403140503,1769193032815,-1085.80378242,0.00014262,2]
[403140504,1769193032824,-250.0,0.00014262,2]
[403140505,1769193032833,-195.0,0.00014262,2]
[403140506,1769193032843,-1220.57510765,0.00014262,2]
[403140507,1769193032852,-164.9567115,0.00014262,2]
[403140508,1769193032861,-1315.8956602,0.00014262,2]
[403140509,1769193032871,-2500.0,0.00014262,2]
[403140510,1769193032880,-1006.64023061,0.00014354,2]
[403140511,1769193032890,-508.24,0.00014359,2]
[403140512,1769193032902,-500.0,0.00014362,2]
[403140513,1769193032911,-500.0,0.00014362,2]
[403140514,1769193032922,-500.0,0.00014362,2]
[403140515,1769193032931,-500.0,0.00014362,2]
[403140516,1769193032940,-500.0,0.00014362,2]
[403140517,1769193032950,-629.45617124,0.00014362,2]
[403140518,1769193032959,-500.0,0.00014362,2]
[403140519,1769193032968,-500.0,0.00014362,2]
[403140520,1769193032978,-500.0,0.00014362,2]
[403140521,1769193032987,-500.0,0.00014362,2]
[403140522,1769193032996,-500.0,0.00014362,2]
[403140523,1769193033007,-506.26166324,0.00014362,2]
[403140524,1769193033017,-500.0,0.00014362,2]
[403140525,1769193033026,-500.0,0.00014362,2]
[403140526,1769193033036,-500.0,0.00014362,2]
[403140527,1769193033045,-503.56,0.00014362,2]
[403140528,1769193033056,-500.0,0.00014362,2]
[403140529,1769193033065,-500.0,0.00014362,2]
[403140530,1769193033076,-1000.0,0.00014362,2]
[403140531,1769193033086,-1927.5388,0.00014362,2]
[403140532,1769193033095,-500.0,0.00014462,2]
[403140533,1769193033105,-508.24,0.00014633,2]
[403140534,1769193033115,-1220.5751076,0.00014666,2]
[403140535,1769193033125,-1315.8956602,0.00014666,2]
[403140536,1769193033135,-508.24,0.00014907,2]
[403140537,1769193033146,-1220.5751076,0.0001507,2]
[403140538,1769193033155,-1315.8956602,0.0001507,2]
[403140539,1769193033164,-508.24,0.00015181,2]
[403140540,1769193033174,-508.24,0.00015455,2]
[403140541,1769193033183,-1220.5751076,0.00015475,2]
[403140542,1769193033193,-1315.8956602,0.00015475,2]
[403140543,1769193033202,-1101.0,0.00015672,2]
[403140544,1769193033211,-195.0,0.00015688,2]
[403140545,1769193033220,-250.0,0.00015688,2]
[403140546,1769193033230,-508.27,0.00015729,2]
[403140547,1769193033243,-431.0,0.0001579,2]
[403140548,1769193033252,-1220.5751076,0.00015879,2]
[403140549,1769193033263,-1315.8956602,0.00015879,2]
[403140550,1769193033272,-188.19125491,0.000159,5]
[403140551,1769193033286,-2411.80874509,0.000159,5]
[403140552,1769193033295,-933.49185768,0.0001599,2]
[403140553,1769193033309,-15734.0805857,0.0001599,2]
[403140554,1769193033318,-150.99,0.00016116,2]
[403140555,1769193033328,-2918.17180085,0.000162,5]
[403140556,1769193033339,-2081.83315681,0.000162,5]
[403140557,1769193033348,-1220.5751076,0.00016283,2]
[403140558,1769193033358,-1315.8956602,0.00016283,2]
[403140559,1769193033367,-150.0,0.00016294,2]
[403140560,1769193033377,-1500.0,0.00016302,2]
[403140561,1769193033386,-3585.45,0.00016309,2]
[403140562,1769193033396,-523.59533916,0.00016315,2]
[403140563,1769193033405,-3585.45,0.00016344,2]
[403140564,1769193033415,-200.0,0.00016353,2]
[403140565,1769193033424,-3585.45,0.00016378,2]
[403140566,1769193033434,-3585.45,0.00016412,2]
[403140567,1769193033443,-565.62006471,0.00016438,2]
[403140568,1769193033453,-3585.45,0.00016447,2]
[403140569,1769193033466,-3585.45,0.00016481,2]
[403140570,1769193033476,-3585.45,0.00016515,2]
[403140571,1769193033486,-3585.45,0.0001655,2]
[403140572,1769193033495,-3585.45,0.00016584,2]
[403140573,1769193033505,-3585.45,0.00016618,2]
[403140574,1769193033514,-3585.45,0.00016652,2]
[403140575,1769193033524,-3585.45,0.00016687,2]
[403140576,1769193033533,-1220.5751076,0.00016687,2]
[403140577,1769193033542,-1315.8956602,0.00016687,2]
[403140578,1769193033551,-3585.45,0.00016721,2]
[403140579,1769193033560,-163.7,0.00016725,2]
[403140580,1769193033570,-3585.45,0.00016755,2]
[403140581,1769193033579,-771.24,0.00016782,2]
[403140582,1769193033588,-3585.45,0.0001679,2]
[403140583,1769193033598,-3585.45,0.00016824,2]
[403140584,1769193033607,-3585.45,0.00016858,2]
[403140585,1769193033616,-1166.59,0.00016892,2]
[403140586,1769193033626,-3585.45,0.00016893,2]
[403140587,1769193033636,-3585.45,0.00016927,2]
[403140588,1769193033647,-3585.45,0.00016961,2]
[403140589,1769193033658,-250.0,0.00016968,2]
[403140590,1769193033667,-2468.0,0.00016968,2]
[403140591,1769193033677,-500.0,0.00016968,2]
[403140592,1769193033845,-250.0,0.00016968,2]
[403140593,1769193033855,-500.0,0.00016968,2]
[403140594,1769193033865,-500.0,0.00016968,2]
[403140595,1769193033874,-500.0,0.00016968,2]
[403140596,1769193033883,-500.0,0.00016968,2]
[403140597,1769193033893,-500.0,0.00016968,2]
[403140598,1769193033903,-500.0,0.00016968,2]
[403140599,1769193033913,-500.0,0.00016968,2]
[403140600,1769193033924,-500.0,0.00016968,2]
[403140601,1769193033934,-500.0,0.00016968,2]
[403140602,1769193033944,-500.0,0.00016968,2]
[403140603,1769193033955,-407.94982869,0.00016968,2]
[403140604,1769193033967,-500.0,0.00016968,2]
[403140605,1769193033977,-500.0,0.00016968,2]
[403140606,1769193033988,-250.0,0.00016968,2]
[403140607,1769193033998,-250.0,0.00016968,2]
[403140608,1769193034009,-250.0,0.00016968,2]
[403140609,1769193034019,-250.0,0.00016968,2]
[403140610,1769193034028,-250.0,0.00016968,2]
[403140611,1769193034039,-250.0,0.00016968,2]
[403140612,1769193034048,-250.0,0.00016968,2]
[403140613,1769193034058,-250.0,0.00016968,2]
[403140614,1769193034068,-250.0,0.00016968,2]
[403140615,1769193034077,-250.0,0.00016968,2]
[403140616,1769193034087,-250.0,0.00016968,2]
[403140617,1769193034098,-250.0,0.00016968,2]
[403140618,1769193034108,-151.0,0.00016968,2]
[403140619,1769193034119,-151.0,0.00016968,2]
[403140620,1769193034128,-151.0,0.00016968,2]
[403140621,1769193034137,-151.0,0.00016968,2]
[403140622,1769193034148,-151.0,0.00016968,2]
[403140623,1769193034157,-151.0,0.00016968,2]
[403140624,1769193034167,-151.0,0.00016968,2]
[403140625,1769193034176,-151.0,0.00016968,2]
[403140626,1769193034186,-151.0,0.00016968,2]
[403140627,1769193034196,-151.0,0.00016968,2]
[403140628,1769193034208,-151.0,0.00016968,2]
[403140629,1769193034218,-500.0,0.00016968,2]
[403140630,1769193034228,-500.0,0.00016968,2]
[403140631,1769193034241,-500.0,0.00016968,2]
[403140632,1769193034250,-500.0,0.00016968,2]
[403140633,1769193034260,-500.0,0.00016968,2]
[403140634,1769193034271,-500.0,0.00016968,2]
[403140635,1769193034282,-500.0,0.00016968,2]
[403140636,1769193034291,-500.0,0.00016968,2]
[403140637,1769193034302,-500.0,0.00016968,2]
[403140638,1769193034312,-500.0,0.00016968,2]
[403140639,1769193034321,-500.0,0.00016968,2]
[403140640,1769193034331,-500.0,0.00016993,2]
[403140641,1769193034340,-1220.5751076,0.00017092,2]
[403140642,1769193034350,-1315.8956602,0.00017092,2]
[403140643,1769193034359,-1560.41632769,0.000172,6]
[403140644,1769193034371,-1254.41808677,0.000172,6]
[403140645,1769193034383,-577.86008006,0.000172,6]
[403140646,1769193034398,-374.45875249,0.000172,6]
[403140647,1769193034427,-132.84675299,0.000172,6]
[403140648,1769193034436,-663.22899006,0.000173,6]
[403140649,1769193034548,-291.47,0.000173,6]
[403140650,1769193034559,-334.02485,0.000173,6]
[403140651,1769193034571,-511.41,0.000173,6]
[403140652,1769193034587,-3399.86615994,0.000173,6]
[403140653,1769193034597,-6179.65829425,0.000174,6]
[403140659,1769193038036,-320.34170575,0.000174,6]
[403140660,1769193038046,-158.37327714,0.00017411,2]
[403140661,1769193038055,-160.2,0.00017487,2]
[403140662,1769193038065,-1220.5751076,0.00017496,2]
[403140663,1769193038074,-1315.8956602,0.00017496,2]
[403140664,1769193038085,-1300.0,0.000175,6]
[403140665,1769193038094,-2000.0,0.00017544,2]
[403140666,1769193038103,-2000.0,0.00017544,2]
[403140667,1769193038113,-2000.0,0.00017544,2]
[403140668,1769193038122,-2000.0,0.00017544,2]
[403140669,1769193038131,-1300.0,0.000176,6]
[403140670,1769193038141,-1678.0,0.00017608,2]
[403140671,1769193038152,-1678.0,0.00017622,2]
[403140672,1769193038162,-1000.0,0.00017654,2]
[403140673,1769193038171,-1000.0,0.00017654,2]
[403140674,1769193038181,-1000.0,0.00017654,2]
[403140675,1769193038192,-500.0,0.00017699,2]
[403140676,1769193038202,-150.0,0.00017699,2]
[403140677,1769193038212,-500.0,0.00017699,2]
[403140678,1769193038221,-152.84284681,0.00017699,2]
[403140679,1769193038231,-500.0,0.00017699,2]
[403140680,1769193038243,-500.0,0.00017699,2]
[403140681,1769193038254,-150.0,0.00017699,2]
[403140682,1769193038263,-150.0,0.00017699,2]
[403140683,1769193038272,-500.0,0.00017699,2]
[403140684,1769193038283,-500.0,0.00017699,2]
[403140685,1769193038292,-500.0,0.00017699,2]
[403140686,1769193038302,-500.0,0.00017699,2]
[403140687,1769193038313,-500.0,0.00017699,2]
[403140689,1769193038323,-150.0,0.00017699,2]
[403140691,1769193038332,-500.0,0.00017699,2]
[403140693,1769193038342,-500.0,0.00017699,2]
[403140695,1769193038351,-500.0,0.00017699,2]
[403140697,1769193038361,-500.0,0.00017699,2]
[403140699,1769193038370,-500.0,0.00017699,2]
[403140701,1769193038380,-500.0,0.00017699,2]
[403140703,1769193038390,-150.0,0.00017699,2]
[403140705,1769193038401,-150.0,0.00017699,2]
[403140707,1769193038410,-500.0,0.00017699,2]
[403140709,1769193038420,-150.0,0.00017699,2]
[403140711,1769193038429,-1000.0,0.00017699,2]
[403140712,1769193038439,-1000.0,0.00017699,2]
[403140714,1769193038448,-1300.0,0.000177,6]
[403140715,1769193038458,-171.6,0.00017708,2]
[403140717,1769193038467,-150.65265465,0.00017725,2]
[403140719,1769193038477,-150.0,0.00017725,2]
[403140721,1769193038486,-500.0,0.00017725,2]
[403140723,1769193038495,-150.0,0.00017725,2]
[403140725,1769193038504,-150.0,0.00017725,2]
[403140727,1769193038514,-500.0,0.00017725,2]
[403140729,1769193038523,-500.0,0.00017725,2]
[403140731,1769193038532,-500.0,0.00017725,2]
[403140733,1769193038542,-150.0,0.00017725,2]
[403140735,1769193038551,-500.0,0.00017725,2]
[403140737,1769193038561,-150.0,0.00017725,2]
[403140739,1769193038571,-150.0,0.00017725,2]
[403140741,1769193038580,-500.0,0.00017725,2]
[403140743,1769193038591,-150.0,0.00017725,2]
[403140744,1769193038601,-151.07703537,0.00017725,2]
[403140746,1769193038610,-2547.123,0.00017738,2]
[403140748,1769193038621,-280.946,0.00017738,2]
[403140750,1769193038631,-500.0,0.00017754,2]
[403140752,1769193038640,-500.0,0.00017754,2]
[403140754,1769193038653,-500.0,0.00017754,2]
[403140756,1769193038663,-500.0,0.00017754,2]
[403140758,1769193038674,-150.0,0.00017754,2]
[403140760,1769193038684,-150.0,0.00017754,2]
[403140762,1769193038693,-500.0,0.00017754,2]
[403140764,1769193038703,-500.0,0.00017754,2]
[403140766,1769193038713,-500.0,0.00017754,2]
[403140768,1769193038722,-500.0,0.00017754,2]
[403140770,1769193038732,-500.0,0.00017754,2]
[403140772,1769193038741,-500.0,0.00017754,2]
[403140774,1769193038750,-500.0,0.00017754,2]
[403140776,1769193038760,-500.0,0.00017754,2]
[403140778,1769193038769,-500.0,0.00017754,2]
[403140780,1769193038779,-500.0,0.00017754,2]
[403140782,1769193038788,-500.0,0.00017754,2]
[403140784,1769193038798,-150.0,0.00017754,2]
[403140786,1769193038807,-500.0,0.00017754,2]
[403140788,1769193038816,-250.0,0.00017778,2]
[403140790,1769193038825,-500.0,0.0001778,2]
[403140791,1769193038834,-235.3073639,0.0001778,2]
[403140793,1769193038844,-500.0,0.0001778,2]
[403140796,1769193038855,-500.0,0.0001778,2]
[403140797,1769193038865,-227.55062227,0.0001778,2]
[403140798,1769193038874,-500.0,0.0001778,2]
[403140799,1769193038883,-500.0,0.0001778,2]
[403140800,1769193038892,-150.0,0.0001778,2]
[403140801,1769193038901,-150.0,0.0001778,2]
[403140802,1769193038910,-500.0,0.0001778,2]
[403140803,1769193038919,-150.0,0.0001778,2]
[403140804,1769193038928,-1300.0,0.000178,6]
[403140805,1769193038938,-500.0,0.00017808,2]
[403140806,1769193038948,-150.0,0.00017808,2]
[403140807,1769193038958,-500.0,0.00017809,2]
[403140808,1769193038967,-500.0,0.00017809,2]
[403140809,1769193038976,-500.0,0.00017809,2]
[403140810,1769193038986,-500.0,0.00017809,2]
[403140811,1769193038995,-255.80435828,0.00017809,2]
[403140812,1769193039005,-154.75207679,0.00017809,2]
[403140813,1769193039016,-500.0,0.00017809,2]
[403140815,1769193039027,-500.0,0.00017809,2]
[403140817,1769193039037,-447.0,0.00017809,2]
[403140819,1769193039047,-375.73815935,0.00017809,2]
[403140821,1769193039060,-500.0,0.00017809,2]
[403140823,1769193039069,-500.0,0.00017809,2]
[403140825,1769193039079,-500.0,0.00017809,2]
[403140827,1769193039089,-500.0,0.00017809,2]
[403140829,1769193039098,-500.0,0.00017809,2]
[403140831,1769193039108,-500.0,0.00017809,2]
[403140833,1769193039117,-500.0,0.00017809,2]
[403140835,1769193039127,-202.7794935,0.00017809,2]
[403140837,1769193039138,-500.0,0.00017809,2]
[403140839,1769193039148,-1381.77638412,0.00017815,2]
[403140841,1769193039158,-2437.61732878,0.00017815,2]
[403140843,1769193039167,-3646.52973953,0.00017815,2]
[403140845,1769193039177,-4933.8828,0.00017815,2]
[403140847,1769193039187,-515.67118,0.0001782,2]
[403140849,1769193039196,-515.67119,0.0001782,2]
[403140851,1769193039206,-500.0,0.00017835,2]
[403140853,1769193039215,-153.53248348,0.00017835,2]
[403140855,1769193039226,-500.0,0.00017835,2]
[403140857,1769193039239,-500.0,0.00017835,2]
[403140859,1769193039249,-172.45367867,0.00017835,2]
[403140861,1769193039259,-157.15309479,0.00017835,2]
[403140863,1769193039268,-150.0,0.00017835,2]
[403140865,1769193039279,-500.0,0.00017835,2]
[403140867,1769193039288,-500.0,0.00017863,2]
[403140869,1769193039297,-505.87876924,0.00017863,2]
[403140871,1769193039307,-500.0,0.00017863,2]
[403140873,1769193039316,-500.0,0.00017863,2]
[403140875,1769193039325,-500.0,0.00017863,2]
[403140877,1769193039335,-350.0,0.00017863,2]
[403140879,1769193039345,-500.0,0.00017863,2]
[403140881,1769193039355,-500.0,0.00017863,2]
[403140883,1769193039364,-500.0,0.00017863,2]
[403140885,1769193039375,-500.0,0.00017863,2]
[403140887,1769193039384,-500.0,0.00017889,2]
[403140889,1769193039395,-500.0,0.00017889,2]
[403140891,1769193039406,-500.0,0.00017889,2]
[403140893,1769193039415,-164.45892503,0.00017889,2]
[403140895,1769193039426,-631.84582328,0.00017889,2]
[403140897,1769193039436,-1220.5751076,0.000179,2]
[403140899,1769193039447,-1300.0,0.000179,6]
[403140901,1769193039456,-1315.8956602,0.000179,2]
[403140903,1769193039467,-195.92069658,0.000179,3]
[403140905,1769193039476,-382.95782017,0.000179,2]
[403140907,1769193039486,-291.47216045,0.000179,2]
[403140909,1769193039495,-500.0,0.00017918,2]
[403140911,1769193039504,-340.0,0.00017918,2]
[403140913,1769193039514,-500.0,0.00017918,2]
[403140915,1769193039523,-500.0,0.00017918,2]
[403140917,1769193039532,-500.0,0.00017918,2]
[403140919,1769193039541,-500.0,0.00017918,2]
[403140921,1769193039551,-500.0,0.00017918,2]
[403140931,1769193039627,-233.97306392,0.00017944,2]
[403140933,1769193039636,-500.0,0.00017944,2]
[403140935,1769193039645,-500.0,0.00017944,2]
[403140937,1769193039655,-500.0,0.00017973,2]
[403140939,1769193039664,-500.0,0.00017973,2]
[403140941,1769193039674,-500.0,0.00017973,2]
[403140943,1769193039683,-500.0,0.00017973,2]
[403140945,1769193039693,-150.0,0.00017973,2]
[403140947,1769193039702,-1000.0,0.00017997,2]
[403140949,1769193039712,-1000.0,0.00017997,2]
[403140951,1769193039721,-500.0,0.00017999,2]